fUSD/lending_fUSD_20250330
["ID","MTS","AMOUNT","RATE_DAILY","PERIOD"]
[356880205,1743361838341,-161.4,0.00053193,2]
[356880206,1743361838351,-155.34,0.00053239,2]
[356880207,1743361838360,-161.4,0.00053336,2]
[356880208,1743361838370,-161.4,0.00053479,2]
[356880209,1743361838379,-515.0,0.00053524,30]
[356880210,1743361838389,-161.4,0.00053622,2]
[356880211,1743361838399,-161.4,0.00053764,2]
[356880212,1743361838409,-161.4,0.00053907,2]
[356880213,1743361838418,-300.33363458,0.00053976,10]
[356880214,1743361838428,-11497.0,0.00054,120]
[356880215,1743361838437,-515.0,0.00054054,30]
[356880217,1743361838447,-515.0,0.00054584,30]
[356880219,1743361838457,-500.0,0.0005473,10]
[356880220,1743361838466,-458.58110287,0.00054794,120]
[356880222,1743361838475,-500.0,0.00054794,120]
[356880224,1743361838484,-500.0,0.00054794,120]
[356880225,1743361838494,-646.30561893,0.00055068,120]
[356880227,1743361838504,-3055.72,0.0005514,60]
[356880229,1743361838513,-1000.0,0.0005514,120]
[356880230,1743361838522,-1000.0,0.00055189,2]
[356880231,1743361838532,-2500.0,0.00055189,2]
[356880232,1743361838541,-3397.98,0.00055244,2]
[356880233,1743361838551,-219.43692823,0.00055256,2]
[356880234,1743361838560,-19686.56,0.00055289,2]
[356880235,1743361838570,-200.0,0.00055407,120]
[356880236,1743361838579,-529.35,0.00055427,2]
[356880237,1743361838588,-161.15,0.00055442,120]
[356880238,1743361838597,-205.55,0.0005545,2]
[356880239,1743361838606,-150.0,0.0005547,7]
[356880240,1743361838616,-250.0,0.00055725,120]
[356880241,1743361838625,-271.34,0.00055833,120]
[356880242,1743361838635,-243.01,0.00055849,120]
[356880243,1743361838644,-4648.3356,0.00056064,2]
[356880244,1743361838654,-563.238,0.00056064,2]
[356880245,1743361838663,-155.34,0.00056311,2]
[356880246,1743361838673,-1500.0,0.00056985,120]
[356880247,1743361838682,-500.0,0.00056985,120]
[356880248,1743361838691,-500.0,0.00056985,120]
[356880249,1743361838701,-500.0,0.00056985,120]
[356880250,1743361838710,-500.0,0.00056985,2]
[356880251,1743361838719,-308.49,0.00056985,120]
[356880252,1743361838729,-500.0,0.00056985,120]
[356880253,1743361838739,-236.3427,0.0005716,2]
[356880254,1743361838748,-888.2283,0.0005716,2]
[356880255,1743361838757,-154.939068,0.00057236,119]
[356880256,1743361838767,-1500.0,0.00057259,120]
[356880257,1743361838777,-500.0,0.00057259,120]
[356880258,1743361838786,-500.0,0.00057259,120]
[356880259,1743361838796,-500.0,0.00057259,120]
[356880260,1743361838806,-500.0,0.00057259,2]
[356880261,1743361838815,-500.0,0.00057259,120]
[356880262,1743361838825,-830.44022321,0.000575,120]
[356880263,1743361838835,-1500.0,0.00057533,120]
[356880264,1743361838844,-500.0,0.00057533,120]
[356880265,1743361838853,-500.0,0.00057533,120]
[356880266,1743361838863,-500.0,0.00057533,120]
[356880267,1743361838872,-500.0,0.00057533,2]
[356880268,1743361838881,-500.0,0.00057533,120]
[356880269,1743361838891,-1677.6299842,0.00057668,120]
[356880270,1743361838900,-1500.0,0.00057807,120]
[356880271,1743361838909,-500.0,0.00057807,120]
[356880272,1743361838919,-500.0,0.00057807,120]
[356880273,1743361838928,-500.0,0.00057807,120]
[356880274,1743361838937,-500.0,0.00057807,2]
[356880275,1743361838946,-500.0,0.00057807,120]
[356880276,1743361838955,-165.13047319,0.00057889,28]
[356880277,1743361838964,-3620.8171,0.000579,2]
[356880278,1743361838974,-929.94051456,0.00057902,15]
[356880279,1743361838983,-88573.726118,0.0005798,4]
[356880280,1743361838993,-150.56,0.0005798,120]
[356880281,1743361839002,-29524.5753727,0.00057989,4]
[356880282,1743361839012,-500.0,0.00057989,120]
[356880283,1743361839021,-17284.86,0.00057989,7]
[356880284,1743361839030,-162385.16455,0.0005799,4]
[356880285,1743361839039,-141069.751642,0.0005799,4]
[356880286,1743361839049,-150.56,0.0005799,120]
[356880287,1743361839058,-211.77339047,0.00057999,120]
[356880288,1743361839067,-541.79199984,0.00057999,120]
[356880289,1743361839077,-500.0,0.00057999,2]
[356880290,1743361839086,-500.0,0.00057999,2]
[356880291,1743361839095,-501.07,0.00057999,2]
[356880292,1743361839104,-500.0,0.00057999,120]
[356880293,1743361839114,-500.0,0.00057999,120]
[356880294,1743361839124,-634.30704646,0.00057999,2]
[356880295,1743361839133,-500.0,0.00057999,30]
[356880296,1743361839142,-500.0,0.00057999,120]
[356880297,1743361839151,-500.0,0.00057999,120]
[356880298,1743361839162,-500.0,0.00057999,120]
[356880299,1743361839172,-358.73,0.00057999,120]
[356880300,1743361839181,-500.0,0.00057999,120]
[356880301,1743361839191,-500.0,0.00057999,120]
[356880302,1743361839200,-500.0,0.00057999,120]
[356880303,1743361839211,-500.0,0.00057999,30]
[356880304,1743361839220,-546.09975662,0.00057999,120]
[356880305,1743361839229,-191.97119283,0.00057999,120]
[356880306,1743361839239,-1000.0,0.00057999,120]
[356880307,1743361839248,-500.0,0.00057999,120]
[356880308,1743361839257,-397.64774879,0.00057999,120]
[356880309,1743361839266,-429.82265889,0.00057999,120]
[356880310,1743361839276,-500.0,0.00057999,120]
[356880311,1743361839285,-575.19139693,0.00057999,120]
[356880312,1743361839294,-500.0,0.00057999,120]
[356880313,1743361839304,-604.84824288,0.00057999,120]
[356880314,1743361839314,-500.0,0.00057999,120]
[356880315,1743361839323,-500.0,0.00057999,120]
[356880316,1743361839333,-500.0,0.00057999,120]
[356880317,1743361839343,-500.0,0.00057999,120]
[356880318,1743361839352,-500.0,0.00057999,120]
[356880319,1743361839362,-500.0,0.00057999,120]
[356880320,1743361839371,-500.0,0.00057999,120]
[356880321,1743361839381,-500.0,0.00057999,120]
[356880322,1743361839390,-500.0,0.00057999,7]
[356880323,1743361839400,-500.0,0.00057999,120]
[356880324,1743361839409,-500.0,0.00057999,120]
[356880325,1743361839418,-500.0,0.00057999,120]
[356880326,1743361839427,-500.0,0.00057999,7]
[356880327,1743361839436,-350.0,0.00057999,120]
[356880328,1743361839446,-500.0,0.00057999,120]
[356880329,1743361839455,-500.0,0.00057999,120]
[356880330,1743361839464,-500.0,0.00057999,120]
[356880331,1743361839473,-500.0,0.00057999,120]
[356880332,1743361839483,-500.0,0.00057999,120]
[356880333,1743361839493,-346558.67,0.00058,120]
[356880334,1743361839502,-1000.0,0.00058,15]
[356880335,1743361839512,-1500.0,0.00058081,120]
[356880336,1743361839521,-500.0,0.00058081,120]
[356880337,1743361839530,-500.0,0.00058081,120]
[356880338,1743361839540,-500.0,0.00058081,120]
[356880339,1743361839549,-500.0,0.00058081,2]
[356880340,1743361839559,-500.0,0.00058081,120]
[356880341,1743361839568,-14762.2876863,0.00058243,4]
[356880342,1743361839578,-14106.9751642,0.00058243,4]
[356880343,1743361839587,-14762.2876863,0.00058263,4]
[356880344,1743361839597,-14106.9751642,0.00058263,4]
[356880345,1743361839606,-522.63510611,0.00058263,120]
[356880346,1743361839616,-17284.86,0.00058263,7]
[356880347,1743361839626,-501.07,0.00058273,2]
[356880348,1743361839636,-500.0,0.00058273,120]
[356880349,1743361839647,-500.0,0.00058273,120]
[356880350,1743361839656,-500.0,0.00058273,30]
[356880351,1743361839666,-500.0,0.00058273,120]
[356880352,1743361839676,-500.0,0.00058273,120]
[356880353,1743361839686,-500.0,0.00058273,120]
[356880354,1743361839696,-500.0,0.00058273,120]
[356880355,1743361839706,-500.0,0.00058273,120]
[356880356,1743361839716,-500.0,0.00058273,120]
[356880357,1743361839725,-500.0,0.00058273,120]
[356880358,1743361839735,-500.0,0.00058273,7]
[356880359,1743361839744,-500.0,0.00058273,120]
[356880360,1743361839754,-500.0,0.00058273,120]
[356880361,1743361839763,-500.0,0.00058273,120]
[356880362,1743361839773,-350.0,0.00058273,120]
[356880363,1743361839783,-500.0,0.00058273,120]
[356880364,1743361839792,-1500.0,0.00058355,120]
[356880365,1743361839802,-500.0,0.00058355,120]
[356880366,1743361839811,-500.0,0.00058355,120]
[356880367,1743361839820,-500.0,0.00058355,120]
[356880368,1743361839830,-500.0,0.00058355,2]
[356880369,1743361839840,-577.45906438,0.00058355,120]
[356880370,1743361839849,-14762.2876863,0.00058517,4]
[356880371,1743361839859,-14106.9751642,0.00058517,4]
[356880372,1743361839868,-186.61035762,0.00058517,7]
[356880373,1743361839878,-14762.2876863,0.00058527,4]
[356880374,1743361839887,-14106.9751642,0.00058527,4]
[356880375,1743361839896,-17284.86,0.00058537,7]
[356880376,1743361839905,-14106.9751642,0.00058537,4]
[356880377,1743361839914,-501.07,0.00058547,2]
[356880378,1743361839924,-500.0,0.00058547,120]
[356880379,1743361839934,-500.0,0.00058547,120]
[356880380,1743361839943,-500.0,0.00058547,30]
[356880381,1743361839953,-500.0,0.00058547,120]
[356880382,1743361839963,-500.0,0.00058547,120]
[356880383,1743361839972,-500.0,0.00058547,120]
[356880384,1743361839981,-500.0,0.00058547,120]
[356880385,1743361839991,-500.0,0.00058547,120]
[356880386,1743361840001,-500.0,0.00058547,120]
[356880387,1743361840010,-500.0,0.00058547,120]
[356880388,1743361840019,-500.0,0.00058547,7]
[356880389,1743361840029,-500.0,0.00058547,120]
[356880390,1743361840039,-500.0,0.00058547,120]
[356880391,1743361840048,-500.0,0.00058547,120]
[356880393,1743361840062,-350.0,0.00058547,120]
[356880394,1743361840072,-500.0,0.00058547,120]
[356880395,1743361840082,-220.56220413,0.00058547,30]
[356880396,1743361840091,-14762.2876863,0.00058619,4]
[356880397,1743361840101,-782.03418495,0.00058629,120]
[356880398,1743361840112,-176.07557771,0.00058629,120]
[356880399,1743361840122,-500.0,0.00058629,120]
[356880400,1743361840131,-500.0,0.00058629,2]
[356880401,1743361840141,-150.56,0.00058791,120]
[356880402,1743361840151,-14106.9751642,0.00058801,4]
[356880403,1743361840163,-17284.86,0.00058811,7]
[356880404,1743361840174,-14106.9751642,0.00058811,4]
[356880405,1743361840183,-158.10079282,0.00058811,30]
[356880406,1743361840193,-501.07,0.00058821,2]
[356880407,1743361840202,-500.0,0.00058821,120]
[356880408,1743361840213,-500.0,0.00058821,120]
[356880409,1743361840222,-500.0,0.00058821,30]
[356880410,1743361840232,-500.0,0.00058821,120]
[356880411,1743361840242,-533.64146197,0.00058821,120]
[356880412,1743361840252,-500.0,0.00058821,120]
[356880413,1743361840262,-301.11758819,0.00058821,120]
[356880414,1743361840272,-500.0,0.00058821,120]
[356880415,1743361840282,-500.0,0.00058821,120]
[356880416,1743361840291,-286.98738085,0.00058821,120]
[356880417,1743361840302,-500.0,0.00058821,7]
[356880418,1743361840311,-500.0,0.00058821,120]
[356880419,1743361840321,-500.0,0.00058821,120]
[356880420,1743361840330,-500.0,0.00058821,120]
[356880421,1743361840339,-350.0,0.00058821,120]
[356880422,1743361840349,-500.0,0.00058821,120]
[356880423,1743361840358,-1022.95,0.000589,60]
[356880424,1743361840367,-638.04765226,0.00058903,120]
[356880425,1743361840377,-500.0,0.00058903,2]
[356880426,1743361840387,-1000.0,0.00058999,120]
[356880427,1743361840396,-216.91233076,0.00059,120]
[356880428,1743361840405,-17284.86,0.00059085,7]
[356880429,1743361840415,-14106.9751642,0.00059085,4]
[356880430,1743361840424,-501.07,0.00059095,2]
[356880431,1743361840434,-500.0,0.00059095,120]
[356880432,1743361840444,-500.0,0.00059095,120]
[356880433,1743361840454,-500.0,0.00059095,30]
[356880434,1743361840463,-500.0,0.00059095,120]
[356880435,1743361840473,-500.0,0.00059095,120]
[356880436,1743361840482,-500.0,0.00059095,120]
[356880437,1743361840492,-500.0,0.00059095,7]
[356880438,1743361840502,-500.0,0.00059095,120]
[356880439,1743361840512,-500.0,0.00059095,120]
[356880440,1743361840521,-500.0,0.00059095,120]
[356880441,1743361840531,-168.79712609,0.00059095,120]
[356880442,1743361840540,-500.0,0.00059095,120]
[356880443,1743361840550,-500.0,0.00059177,2]
[356880444,1743361840559,-14106.9751642,0.00059339,4]
[356880445,1743361840568,-17284.86,0.00059359,7]
[356880446,1743361840578,-14106.9751642,0.00059359,4]
[356880447,1743361840587,-501.07,0.00059369,2]
[356880448,1743361840596,-500.0,0.00059369,120]
[356880449,1743361840607,-500.0,0.00059369,120]
[356880450,1743361840616,-206.14107493,0.00059369,30]
[356880452,1743361840746,-500.0,0.00059369,120]
[356880453,1743361840759,-500.0,0.00059369,120]
[356880454,1743361840768,-500.0,0.00059369,120]
[356880455,1743361840778,-500.0,0.00059369,7]
[356880456,1743361840787,-500.0,0.00059369,120]
[356880457,1743361840796,-500.0,0.00059369,120]
[356880458,1743361840807,-500.0,0.00059369,120]
[356880459,1743361840816,-500.0,0.00059369,120]
[356880460,1743361840826,-155.34,0.00059384,2]
[356880461,1743361840835,-500.0,0.00059451,2]
[356880462,1743361840844,-150.0,0.00059467,14]
[356880463,1743361840853,-150.0,0.00059468,14]
[356880464,1743361840863,-150.0,0.00059469,14]
[356880465,1743361840872,-150.0,0.00059478,14]
[356880466,1743361840881,-150.0,0.00059486,14]
[356880467,1743361840890,-206.91606742,0.00059487,14]
[356880468,1743361840899,-150.0,0.000595,14]
[356880469,1743361840909,-150.0,0.00059505,14]
[356880470,1743361840918,-150.0,0.00059509,14]
[356880471,1743361840929,-150.0,0.00059509,14]
[356880472,1743361840938,-150.0,0.00059516,14]
[356880473,1743361840947,-150.0,0.00059517,14]
[356880474,1743361840956,-150.0,0.00059517,14]
[356880475,1743361840965,-150.0,0.00059518,14]
[356880476,1743361840975,-150.0,0.00059518,14]
[356880477,1743361840984,-150.0,0.00059518,14]
[356880478,1743361840993,-150.0,0.00059525,14]
[356880479,1743361841002,-150.0,0.00059535,14]
[356880480,1743361841011,-150.0,0.00059552,14]
[356880481,1743361841020,-150.0,0.00059555,14]
[356880482,1743361841030,-150.0,0.00059557,14]
[356880483,1743361841039,-150.0,0.00059558,14]
[356880484,1743361841048,-210.072184,0.00059559,14]
[356880485,1743361841058,-568.47531292,0.00059559,60]
[356880486,1743361841068,-191.73636467,0.0005956,14]
[356880487,1743361841077,-150.0,0.00059561,14]
[356880488,1743361841087,-1000.0,0.00059567,60]
[356880489,1743361841096,-150.0,0.00059567,14]
[356880490,1743361841107,-1000.0,0.00059569,60]
[356880491,1743361841116,-150.0,0.0005957,14]
[356880492,1743361841125,-150.0,0.0005957,14]
[356880493,1743361841135,-150.0,0.00059571,14]
[356880494,1743361841144,-150.0,0.00059575,14]
[356880495,1743361841154,-150.0,0.00059582,14]
[356880496,1743361841166,-1000.0,0.00059584,60]
[356880497,1743361841176,-150.0,0.00059586,14]
[356880498,1743361841186,-1000.0,0.00059589,60]
[356880499,1743361841195,-150.0,0.00059589,14]
[356880500,1743361841206,-1000.0,0.0005959,60]
[356880501,1743361841215,-1000.0,0.00059591,60]
[356880502,1743361841225,-150.0,0.00059591,14]
[356880503,1743361841235,-150.0,0.00059591,14]
[356880504,1743361841245,-150.0,0.00059597,14]
[356880505,1743361841255,-150.0,0.00059598,14]
[356880506,1743361841265,-150.0,0.0005961,14]
[356880507,1743361841274,-150.0,0.00059613,14]
[356880508,1743361841283,-4492.20707903,0.00059613,5]
[356880509,1743361841298,-2639.72490357,0.00059613,5]
[356880510,1743361841310,-1831.9228223,0.00059613,5]
[356880511,1743361841321,-2492.34,0.00059613,5]
[356880512,1743361841333,-2445.08324015,0.00059613,5]
[356880513,1743361841379,-205.69711915,0.00059613,5]
[356880514,1743361841388,-300.0,0.00059619,14]
[356880515,1743361841398,-95.00551333,0.00059621,14]
[356880516,1743361841409,-54.99448667,0.00059621,14]
[356880517,1743361841418,-10543.15591333,0.00059623,5]
[356880518,1743361841461,-2393.9,0.00059623,5]
[356880519,1743361841477,-150.0,0.00051404,30]
[356880520,1743361841487,-1006.2,0.00059623,5]
[356880521,1743361841498,-163.71925087,0.00059623,5]
[356880522,1743361841507,-150.0,0.00059627,14]
[356880523,1743361841516,-150.0,0.00059628,14]
[356880524,1743361841526,-150.0,0.0005963,14]
[356880525,1743361841535,-2076.27630901,0.00059633,7]
[356880526,1743361841546,-333.81892786,0.00059633,7]
[356880527,1743361841563,-374.92276963,0.00059633,7]
[356880535,1743361843073,-150.0,0.00052148,2]
[356880536,1743361843083,-492.07517093,0.00059633,7]
[356880545,1743361846019,-150.0,0.00052665,15]
[356880546,1743361846029,-150.0,0.00059462,14]
[356880547,1743361846039,-102.95513992,0.0005947,14]
[356880548,1743361846050,-47.04486008,0.0005947,14]
[356880549,1743361846061,-150.0,0.00059471,14]
[356880550,1743361846070,-243.08393258,0.00059488,14]
[356880551,1743361846079,-150.0,0.00059513,14]
[356880552,1743361846089,-497.84718588,0.00059514,60]
[356880553,1743361846100,-502.15281412,0.00059514,60]
[356880554,1743361846110,-150.0,0.00059542,14]
[356880555,1743361846120,-150.0,0.00059544,14]
[356880556,1743361846129,-150.0,0.00059545,14]
[356880557,1743361846139,-41.41009522,0.00059549,14]
[356880558,1743361846150,-108.58990478,0.00059549,14]
[356880559,1743361846161,-150.0,0.00059551,14]
[356880560,1743361846173,-150.0,0.00059559,14]
[356880561,1743361846183,-150.0,0.00059559,14]
[356880562,1743361846192,-150.0,0.00059572,14]
[356880563,1743361846201,-130.0989989,0.00059588,60]
[356880564,1743361846307,-1001.42568818,0.00059588,60]
[356880565,1743361846317,-150.0,0.00059591,14]
[356880566,1743361846326,-150.0,0.00059608,14]
[356880567,1743361846336,-150.0,0.00059616,14]
[356880568,1743361846346,-14007.76682257,0.00059633,7]
[356880569,1743361846356,-14106.9751642,0.00059633,5]
[356880570,1743361846365,-150.0,0.00059641,14]
[356880571,1743361846375,-501.07,0.00059643,2]
[356880572,1743361846384,-500.0,0.00059643,120]
[356880573,1743361846394,-441.91801324,0.00059643,120]
[356880575,1743361846403,-500.0,0.00059643,120]
[356880576,1743361846412,-500.0,0.00059643,120]
[356880577,1743361846422,-500.0,0.00059643,7]
[356880578,1743361846431,-500.0,0.00059643,120]
[356880579,1743361846441,-158.25396546,0.00059643,120]
[356880580,1743361846450,-500.0,0.00059643,120]
[356880582,1743361846459,-150.0,0.00059643,14]
[356880584,1743361846468,-500.0,0.00059643,120]
[356880585,1743361846477,-150.0,0.0005965,14]
[356880586,1743361846486,-150.0,0.00059651,14]
[356880587,1743361846495,-150.0,0.00059651,14]
[356880588,1743361846504,-150.0,0.00059652,14]
[356880590,1743361846513,-1000.0,0.00059653,60]
[356880591,1743361846522,-150.0,0.00059653,14]
[356880592,1743361846531,-150.0,0.00059654,14]
[356880593,1743361846541,-150.0,0.00059655,14]
[356880594,1743361846550,-150.0,0.00059663,14]
[356880595,1743361846559,-150.0,0.00059664,14]
[356880596,1743361846567,-150.0,0.00059668,14]
[356880597,1743361846577,-150.0,0.00059669,14]
[356880598,1743361846586,-150.0,0.00059671,14]
[356880599,1743361846595,-150.0,0.00059672,14]
[356880600,1743361846604,-150.0,0.00059673,14]
[356880601,1743361846614,-150.0,0.0005968,14]
[356880602,1743361846623,-150.0,0.00059686,14]
[356880603,1743361846632,-150.0,0.00059686,14]
[356880604,1743361846641,-150.0,0.00059687,14]
[356880605,1743361846650,-150.0,0.00059689,14]
[356880606,1743361846659,-150.0,0.0005969,14]
[356880607,1743361846668,-1000.0,0.00059691,60]
[356880608,1743361846677,-1000.0,0.00059696,60]
[356880609,1743361846686,-150.0,0.00059696,14]
[356880610,1743361846695,-150.0,0.00059698,14]
[356880611,1743361846704,-150.0,0.00059702,14]
[356880612,1743361846713,-1000.0,0.00059703,60]
[356880613,1743361846723,-1000.0,0.0005971,60]
[356880614,1743361846732,-150.0,0.00059712,14]
[356880615,1743361846741,-150.0,0.00059716,14]
[356880616,1743361846751,-1000.0,0.00059719,60]
[356880617,1743361846760,-150.0,0.00059719,14]
[356880618,1743361846770,-150.0,0.0005972,14]
[356880619,1743361846779,-500.0,0.00059725,2]
[356880620,1743361846789,-150.0,0.00059729,14]
[356880621,1743361846798,-150.0,0.00059729,14]
[356880622,1743361846808,-150.0,0.00059743,14]
[356880623,1743361846818,-1000.0,0.00059753,60]
[356880624,1743361846827,-1000.0,0.00059759,60]
[356880625,1743361846836,-150.0,0.00059767,14]
[356880626,1743361846846,-150.0,0.00059769,14]
[356880627,1743361846855,-150.0,0.0005977,14]
[356880628,1743361846864,-300.0,0.00059785,14]
[356880629,1743361846873,-150.0,0.00059787,14]
[356880630,1743361846883,-581.8230209,0.00059819,2]
[356880631,1743361846892,-2000.0,0.0005986,45]
[356880632,1743361846901,-1598.74056736,0.00059893,120]
[356880633,1743361846911,-14106.9751642,0.00059897,5]
[356880634,1743361847053,-1296.4696,0.00059899,2]
[356880635,1743361847065,-1000.0,0.000599,2]
[356880636,1743361847075,-14106.9751642,0.00059907,5]
[356880637,1743361847085,-2264.05395554,0.00059907,7]
[356880638,1743361920889,-171.36272092,0.00048799,120]
[356880640,1743362596393,1006.95134377,0.00033462,120]
[356880646,1743362902716,-444.02285905,0.000149,2]
[356880647,1743362910015,-150.0,0.000149,2]
[356880648,1743362941959,-229.87709353,0.00014899,2]
[356880652,1743363002499,350.0,0.00014949,3]
[356880659,1743363032259,-150.0,0.00014899,2]
[356880660,1743363032269,-357.03837421,0.000149,2]
[356880661,1743363032474,-48.93876674,0.000149,2]
[356880662,1743363032484,-978.61576721,0.000149,2]
[356880663,1743363032534,-7264.39825931,0.000149,2]
[356880664,1743363032590,-8014.63461006,0.000149,2]
[356880671,1743363038210,-900.0,0.000149,2]
[356880672,1743363038374,-2919.25128921,0.000149,2]
[356880673,1743363038386,-4197.49999999,0.000149,2]
[356880674,1743363038432,-434.4082253,0.000149,2]
[356880675,1743363038443,-38379.21963551,0.000149,2]
[356880676,1743363038453,-171.36272092,0.000149,2]
[356880677,1743363038463,-165.13047316,0.000149,2]
[356880678,1743363038472,-2500.0,0.000149,2]
[356880679,1743363038481,-155.00804336,0.000149,2]
[356880680,1743363038491,-542.36577097,0.000149,2]
[356880681,1743363038500,-444.02285905,0.00014973,2]
[356880682,1743363038509,-186.61035762,0.0001499,2]
[356880683,1743363038519,-319.4142971,0.00014999,2]
[356880684,1743363038528,-94271.91684602,0.00015,2]
[356880702,1743363040413,-4925397.4398506,0.00015,2]
[356880703,1743363040633,-2889.40548693,0.00015,2]
[356880704,1743363040689,-3616.55106365,0.00015,2]
[356880705,1743363040747,-289.05511693,0.00015,2]
[356880707,1743363044659,-31220.93913712,0.00015,2]
[356880708,1743363044671,-2169.879516,0.00015,2]
[356880709,1743363044683,-4762.15460413,0.00015,2]
[356880729,1743363046236,-51394.9670546,0.00015,2]
[356880730,1743363046348,-2089.49220284,0.00015,2]
[356880731,1743363046359,-638.955,0.00015,2]
[356880732,1743363046462,-46311.77762677,0.00015,2]
[356880733,1743363046476,-98690.75995577,0.00015,2]
[356880737,1743363059775,2226.3018,0.000148,2]
[356880738,1743363061902,23836.87675027,0.0001485,2]
[356880740,1743363123864,-243.22017716,0.00014899,2]
[356880741,1743363123888,-4.97832284,0.00014899,2]
[356880742,1743363183499,-150.0,0.00014899,2]
[356880743,1743363242653,-226.137561,0.00014899,2]
[356880744,1743363303447,-300.0,0.00014899,2]
[356880745,1743363362816,350.0,0.0001495,3]
[356880746,1743363481567,350.0,0.0001495,3]
[356880747,1743363510227,219.99664329,0.000147,2]
[356880748,1743363510261,34.52941907,0.000147,2]
[356880749,1743363510288,764.31158093,0.000147,2]
[356880750,1743363562560,1000.0,0.000251,120]
[356880751,1743363566710,639.28766484,0.000148,2]
[356880752,1743363566737,351.63140247,0.000148,2]
[356880753,1743363603144,-447.17206569,0.0001489,2]
[356880754,1743363672146,495.45953365,0.000148,2]
[356880755,1743363728315,403.40468522,0.00014583,2]
[356880756,1743363778281,495.45953365,0.000148,2]
[356880757,1743364052589,-1600.0,0.0001489,2]
[356880758,1743364053186,-158.57130424,0.0001489,2]
[356880759,1743364203739,-376.137561,0.0001489,2]
[356880760,1743364209271,-4185.88727284,0.0001489,2]
[356880779,1743364231479,-59.25146146,0.0001489,2]
[356880781,1743364231489,-10792.7145141,0.000149,2]
[356880787,1743364231532,-2113.28286315,0.000149,2]
[356880793,1743364231588,-774.34181465,0.000149,2]
[356880796,1743364231600,-662.02854974,0.000149,2]
[356880798,1743364231611,-6360.65215151,0.000149,2]
[356880800,1743364231623,-257.9999999,0.000149,2]
[356880803,1743364231642,-1075.68508051,0.000149,2]
[356880810,1743364231698,-1085.33652251,0.000149,2]
[356880812,1743364231709,-757.8900005,0.000149,2]
[356880816,1743364231752,-12108.30280343,0.000149,2]
[356880817,1743364231761,-500.0,0.000149,2]
[356880818,1743364231771,-182.0149,0.000149,2]
[356880819,1743364231781,-465.2921,0.000149,2]
[356880820,1743364231790,-1005.9127,0.000149,2]
[356880821,1743364231800,-519.6619,0.000149,2]
[356880822,1743364231810,-493.142,0.000149,2]
[356880823,1743364231819,-185.43893293,0.000149,2]
[356880824,1743364231831,-814.56106707,0.000149,2]
[356880825,1743364231840,-6273.4086,0.000149,2]
[356880826,1743364231850,-24.5339019,0.000149,2]
[356880827,1743364231861,-9288.42305707,0.000149,2]
[356880828,1743364231874,-2576.4087045,0.000149,2]
[356880829,1743364231885,-3192.00773653,0.000149,2]
[356880830,1743364231895,-1297.1798,0.000149,2]
[356880831,1743364231905,-1000.0,0.000149,2]
[356880832,1743364231915,-747.1721,0.000149,2]
[356880833,1743364231924,-2253.65955772,0.000149,2]
[356880834,1743364231934,-2500.0,0.000149,2]
[356880835,1743364231943,-165.13047316,0.000149,2]
[356880836,1743364231953,-226.65338098,0.0001499,2]
[356880837,1743364231963,-157.82605798,0.0001499,2]
[356880838,1743364231972,-12691.58635002,0.0001499,2]